fUSD/lending_fUSD_20240618
["ID","MTS","AMOUNT","RATE_DAILY","PERIOD"]
[329797946,1718679032946,-3190.2733,0.000149,2]
[329797948,1718679032955,-1600.0,0.000149,5]
[329797950,1718679032965,-278.53347834,0.000149,2]
[329797951,1718679032977,-46.55953769,0.000149,2]
[329797952,1718679032987,-150.0,0.00014959,2]
[329797953,1718679032996,-526.15894782,0.00014999,2]
[329797954,1718679033007,-460444.61527437,0.00015,2]
[329797955,1718679033019,-49172.67222125,0.00015,2]
[329797956,1718679033030,-441.82954314,0.00015,2]
[329797957,1718679033041,-490.32175721,0.00015,2]
[329797958,1718679033053,-286886.23902432,0.00015,2]
[329797959,1718679033064,-14891.42473928,0.00015,2]
[329797960,1718679033076,-18570.756,0.00015,2]
[329797961,1718679033087,-13037.42092,0.00015,2]
[329797962,1718679033100,-6592.7144032,0.00015,2]
[329797963,1718679033119,-16864.68024115,0.00015,2]
[329797964,1718679033130,-4265.1967325,0.00015,2]
[329797965,1718679033142,-500.0,0.00015,2]
[329797968,1718679038372,-600.2416,0.00014797,2]
[329797970,1718679038384,-920.35948001,0.00015,2]
[329797971,1718679038403,-35642.35306846,0.00015,2]
[329797973,1718679038417,-3121.61111413,0.00015,2]
[329797975,1718679038431,-453.72,0.00015,2]
[329797976,1718679038445,-760.05397092,0.00015,2]
[329797977,1718679040707,-302.52178472,0.00015,2]
[329797979,1718679040720,-601.78346987,0.00015,2]
[329797980,1718679040734,-336.8860441,0.00015,2]
[329797981,1718679040748,-10161.56089226,0.00015,2]
[329797982,1718679040762,-11991.44661546,0.00015,2]
[329797991,1718679042717,-540.34153168,0.00015,2]
[329797992,1718679042729,-269.65265215,0.00015,2]
[329797993,1718679042741,-576.80320054,0.00015,2]
[329797994,1718679042754,-1292.76814614,0.00015,2]
[329797995,1718679042767,-332.98441238,0.00015,2]
[329797996,1718679042779,-459.64894125,0.00015,2]
[329797997,1718679042791,-13353.94828816,0.00015,2]
[329797999,1718679043352,-78591.75995894,0.00015,2]
[329798004,1718679043368,-1200.29386487,0.00015,2]
[329798006,1718679043380,-527.39556223,0.00015,2]
[329798008,1718679043392,-498.69792785,0.00015,2]
[329798009,1718679043405,-384.644286,0.00015,2]
[329798010,1718679043417,-304.184176,0.00015,2]
[329798015,1718679045186,-943.46654364,0.00014699,2]
[329798016,1718679045196,-213.74577318,0.00014999,2]
[329798017,1718679045206,-1672.43503082,0.00015,2]
[329798018,1718679045219,-1144.36375668,0.00015,2]
[329798019,1718679045231,-2888.67189524,0.00015,2]
[329798020,1718679045242,-412.74691942,0.00015,2]
[329798021,1718679045252,-1753.95735098,0.00015,2]
[329798022,1718679045264,-2391.02273755,0.00015,2]
[329798023,1718679045275,-403.22850324,0.00015,2]
[329798024,1718679045286,-1875.42801641,0.00015,2]
[329798025,1718679045298,-731.4392052,0.00015,2]
[329798026,1718679045309,-973.369812,0.00015,2]
[329798027,1718679045320,-1070.09403584,0.00015,2]
[329798028,1718679045332,-18122.47780799,0.00015,2]
[329798029,1718679045344,-2489.3114326,0.00015,2]
[329798030,1718679045355,-662.83861414,0.00015,2]
[329798031,1718679045370,-1538.79411989,0.00015,2]
[329798032,1718679045382,-2547.873211,0.00015,2]
[329798033,1718679045393,-3799.999993,0.00015,2]
[329798034,1718679045405,-2743.43994,0.00015,2]
[329798035,1718679045416,-489.29187735,0.00015,2]
[329798036,1718679045428,-1276.4995102,0.00015,2]
[329798038,1718679045440,-695.84866301,0.00015,2]
[329798039,1718679045497,-3520.27586394,0.00015,2]
[329798040,1718679045511,-2528.76,0.00015,2]
[329798042,1718679046903,-75446.31405427,0.00015,2]
[329798044,1718679046915,-765.19602405,0.00015,2]
[329798045,1718679046926,-2270.11185311,0.00015,2]
[329798046,1718679046938,-1033.59720923,0.00015,2]
[329798047,1718679046949,-965.04287005,0.00015,2]
[329798048,1718679046961,-303.03052404,0.00015,2]
[329798049,1718679046973,-404.4192757,0.00015,2]
[329798050,1718679046984,-9491.1,0.00015,2]
[329798051,1718679046995,-982.88826622,0.00015,2]
[329798052,1718679047007,-117374.97342783,0.00015,2]
[329798053,1718679047018,-4506.06258621,0.00015,2]
[329798054,1718679047029,-4903.45504488,0.00015,2]
[329798055,1718679047041,-20757.64335188,0.00015,2]
[329798056,1718679047053,-1789.07405067,0.00015,2]
[329798057,1718679047065,-276.90558802,0.00015,2]
[329798058,1718679047146,-1215.15062079,0.00015,2]
[329798077,1718679058762,305.35192534,0.00013349,2]
[329798079,1718679103767,942.79,0.00024,120]
[329798088,1718679209732,453.33042599,0.00013348,2]
[329798625,1718680232973,-155.0,0.00014247,2]
[329798628,1718680232983,-1946.31285773,0.00014248,2]
[329798633,1718680232999,-732.10144154,0.00014248,2]
[329798634,1718680233011,-147.91290182,0.00014248,2]
[329798636,1718680233020,-683.47541453,0.00014249,2]
[329798638,1718680233030,-390.24,0.00014335,2]
[329798639,1718680233039,-211.57519697,0.00014398,2]
[329798640,1718680233049,-410.32870978,0.00014657,2]
[329798641,1718680233058,-303.940704,0.00014795,2]
[329798642,1718680233067,-44.7674537,0.00014899,2]
[329798643,1718680233078,-255.2325463,0.00014899,2]
[329798644,1718680233086,-399.8060834,0.000149,2]
[329798645,1718680233098,-290.4621166,0.000149,2]
[329798646,1718680233107,-5123.5946583,0.000149,2]
[329798647,1718680233118,-4997.91813816,0.000149,2]
[329798648,1718680233129,-2028.77600354,0.000149,2]
[329798649,1718680233139,-1286.40387994,0.000149,2]
[329798650,1718680233150,-427.70345227,0.000149,2]
[329798651,1718680233160,-68.59330742,0.000149,2]
[329798652,1718680233172,-256.28709418,0.000149,2]
[329798653,1718680233182,-419.81290582,0.0001499,2]
[329798654,1718680233194,-1533.16988502,0.0001499,2]
[329798655,1718680233206,-10808.08059513,0.0001499,2]
[329798656,1718680233217,-766.70047964,0.0001499,2]
[329798657,1718680233229,-1927.73702924,0.0001499,2]
[329798658,1718680233239,-1361.99876657,0.00014998,2]
[329798659,1718680233251,-752.35031756,0.00014998,2]
[329798660,1718680239407,-825.32797,0.00014998,2]
[329798661,1718680239419,-2455.1135514,0.00014998,2]
[329798662,1718680239430,-2221.81522345,0.00014998,2]
[329798663,1718680239440,-536.94619425,0.00014998,2]
[329798664,1718680239450,-150.99,0.00014998,2]
[329798665,1718680239460,-499.99,0.00014998,2]
[329798666,1718680239470,-215.77644711,0.00014998,2]
[329798667,1718680239480,-638.44683362,0.00014999,2]
[329798668,1718680239490,-729.39,0.00014999,2]
[329798669,1718680239502,-1053.60951562,0.00015,2]
[329798670,1718680239515,-1800.0,0.00015,2]
[329798671,1718680239528,-33769.97049631,0.00015,2]
[329798709,1718680242189,-2716.83599195,0.00015,2]
[329798711,1718680242202,-546.54829209,0.00015,2]
[329798712,1718680242214,-518.6105,0.00015,2]
[329798713,1718680242225,-474.82751898,0.00015,2]
[329798718,1718680243446,-140996.83616964,0.00015,2]
[329798725,1718680243473,-333.7312523,0.00015,2]
[329798729,1718680243485,-64068.28282542,0.00015,2]
[329798736,1718680243515,-0.03716107,0.00015,2]
[329798739,1718680243529,-1922.32788358,0.00015,2]
[329798742,1718680243541,-509.999985,0.00015,2]
[329798744,1718680243554,-848.067256,0.00015,2]
[329798746,1718680243567,-11725.55907921,0.00015,2]
[329798754,1718680245284,-3389.96158938,0.00015,2]
[329798758,1718680245296,-620.1651035,0.00015,2]
[329798762,1718680245307,-685.55704284,0.00015,2]
[329798765,1718680245319,-16158.3409995,0.00015,2]
[329798768,1718680245331,-16884.35063302,0.00015,2]
[329798773,1718680246794,-3474.1285887,0.00015,2]
[329798775,1718680246806,-1100.8999995,0.00015,2]
[329798778,1718680246817,-7995.99269017,0.00015,2]
[329798780,1718680246829,-13438.9932,0.00015,2]
[329798782,1718680246840,-2647.0104865,0.00015,2]
[329798794,1718680248211,-155.53785315,0.00014999,2]
[329798796,1718680248221,-1052.46214685,0.00015,2]
[329798798,1718680248240,-1931.906315,0.00015,2]
[329798800,1718680248255,-3521.565532,0.00015,2]
[329798802,1718680248267,-8236.343794,0.00015,2]
[329798838,1718680261992,356.92122162,0.00013348,2]
[329798859,1718680274837,4107.81884467,0.00013348,2]
[329798860,1718680274905,8245.89975849,0.00013348,2]
[329799003,1718681301926,500.0,0.0002,30]
[329799288,1718681433676,-155.0,0.0001479,2]
[329799291,1718681433698,-241.94190087,0.00014791,2]
[329799295,1718681433712,-283.33072782,0.00014791,2]
[329799297,1718681433724,-58.53290059,0.00014792,2]
[329799300,1718681433742,-108.39981922,0.00014792,2]
[329799301,1718681433758,-451.80251788,0.00014794,2]
[329799303,1718681433774,-2374.52468321,0.00014794,2]
[329799304,1718681433788,-300.0,0.00014795,2]
[329799305,1718681433803,-4621.42639349,0.00014796,2]
[329799306,1718681433816,-3648.33202661,0.00014846,2]
[329799307,1718681433831,-1855.13795374,0.00014998,2]
[329799308,1718681433855,-872.92271774,0.00014998,2]
[329799309,1718681433871,-1292.46420529,0.00014998,2]
[329799310,1718681433886,-201.81927001,0.00014998,3]
[329799311,1718681433901,-212.90239446,0.00014998,2]
[329799312,1718681433922,-6827.74755514,0.00014998,2]
[329799313,1718681433939,-159.23385883,0.00014998,2]
[329799314,1718681433953,-786.90809948,0.00014999,2]
[329799315,1718681433967,-320.85820451,0.00014999,2]
[329799316,1718681433990,-268.27796725,0.00014999,2]
[329799317,1718681434011,-155.6973811,0.00014999,2]
[329799318,1718681434030,-54800.85236849,0.00015,2]
[329799319,1718681434051,-474.46635641,0.00015,2]
[329799320,1718681434073,-411.19294123,0.00015,2]
[329799321,1718681434094,-10244.26223445,0.00015,2]
[329799322,1718681434115,-1339.32568212,0.00015,2]
[329799323,1718681434135,-2360.35387545,0.00015,2]
[329799324,1718681434155,-315.0,0.00015,2]
[329799325,1718681434174,-1420.97727954,0.00015,2]
[329799326,1718681434196,-12611.04820383,0.00015,2]
[329799327,1718681434215,-7800.69533894,0.00015,2]
[329799328,1718681434233,-521.97670531,0.00015,2]
[329799329,1718681434252,-422.76314946,0.00015,2]
[329799330,1718681434270,-2478.29101073,0.00015,2]
[329799331,1718681434287,-556.70320369,0.00015,2]
[329799332,1718681434303,-2719.05049637,0.00015,2]
[329799333,1718681434320,-1433.51391152,0.00015,2]
[329799334,1718681434337,-15076.47431927,0.00015,2]
[329799335,1718681434350,-2354.9834903,0.00015,2]
[329799336,1718681434364,-1330.63159291,0.00015,2]
[329799337,1718681434380,-1095.05587709,0.00015,2]
[329799338,1718681434394,-150.99,0.00015,2]
[329799339,1718681434407,-420.0,0.00016196,2]
[329799340,1718681434421,-19240.7120567,0.00017161,2]
[329799341,1718681434439,-351.68374011,0.00017161,2]
[329799342,1718681434456,-569.99999994,0.00017161,2]
[329799343,1718681434472,-351.899999,0.00017161,2]
[329799359,1718681441621,-1145.08013776,0.00017161,2]
[329799360,1718681441634,-2072.10473281,0.00017161,2]
[329799361,1718681441646,-624.21583311,0.00017161,2]
[329799362,1718681441658,-4440.864085,0.00017161,2]
[329799363,1718681441693,-1392.37172164,0.00017161,2]
[329799364,1718681441707,-746.89027862,0.00017161,2]
[329799365,1718681441719,-1651.94935281,0.00017161,2]
[329799366,1718681441730,-785.23100942,0.00017161,2]
[329799367,1718681441742,-751.99705308,0.00017161,2]
[329799368,1718681441751,-247.2,0.00017163,2]
[329799369,1718681441761,-480.88,0.0001721,2]
[329799370,1718681441772,-157.02230508,0.00017218,2]
[329799371,1718681441784,-92.97769492,0.00017218,2]
[329799372,1718681441794,-445.10073809,0.00017729,2]
[329799373,1718681441806,-141.89926191,0.00017729,2]
[329799374,1718681441815,-159.1,0.00018941,2]
[329799375,1718681441825,-454.88,0.00019033,2]
[329799376,1718681441835,-301.12,0.00019178,2]
[329799377,1718681441844,-527.26,0.00019178,2]
[329799378,1718681441854,-423.35,0.00019178,2]
[329799379,1718681441864,-460.45,0.00019178,2]
[329799380,1718681441873,-354.02,0.00019178,2]
[329799381,1718681441883,-423.35,0.00019178,2]
[329799382,1718681441893,-527.26,0.00019178,2]
[329799383,1718681441902,-527.26,0.00019178,2]
[329799384,1718681441916,-354.02,0.00019178,2]
[329799385,1718681441926,-423.35,0.00019178,2]
[329799386,1718681441936,-423.35,0.00019178,2]
[329799387,1718681441948,-527.26,0.00019178,2]
[329799388,1718681441957,-354.02,0.00019178,2]
[329799389,1718681441966,-527.26,0.00019178,2]
[329799390,1718681441975,-354.02,0.00019178,2]
[329799391,1718681441986,-423.35,0.00019178,2]
[329799392,1718681441996,-380.78,0.00019178,2]
[329799393,1718681442006,-527.26,0.00019178,2]
[329799394,1718681442016,-354.02,0.00019178,2]
[329799395,1718681442026,-527.26,0.00019178,2]
[329799396,1718681442036,-354.02,0.00019178,2]
[329799397,1718681442045,-527.26,0.00019178,2]
[329799398,1718681442056,-354.02,0.00019178,2]
[329799399,1718681442066,-1054.21,0.00019178,2]
[329799400,1718681442075,-527.26,0.00019178,2]
[329799401,1718681442084,-527.26,0.00019178,2]
[329799402,1718681442094,-527.26,0.00019178,2]
[329799403,1718681442103,-207.76,0.00019199,2]
[329799404,1718681442113,-1000.0,0.00019261,2]
[329799405,1718681442123,-247.2,0.00019309,2]
[329799406,1718681442133,-823.0,0.00019407,2]
[329799407,1718681442143,-480.88,0.00019474,2]
[329799408,1718681442152,-430.45002204,0.00019483,2]
[329799409,1718681442162,-159.1,0.00019622,2]
[329799410,1718681442172,-150.0,0.00019791,2]
[329799411,1718681442182,-3327.04843291,0.0001981,2]
[329799445,1718681442738,-281.4103684,0.0001981,2]
[329799447,1718681442750,-3816.05315889,0.0001981,2]
[329799449,1718681442763,-494.72760592,0.0001981,2]
[329799461,1718681443008,-1275.36257132,0.0001981,2]
[329799462,1718681443021,-1236.89030779,0.0001981,2]
[329799463,1718681443033,-2304.24042531,0.0001981,2]
[329799464,1718681443045,-3963.48984743,0.0001981,2]
[329799465,1718681443055,-256.05,0.00019891,2]
[329799466,1718681443064,-442.0,0.00019891,2]
[329799467,1718681443074,-150.0,0.0001999,2]
[329799468,1718681443084,-865.65,0.0002,2]
[329799469,1718681443095,-155.0,0.0002,2]
[329799470,1718681443105,-866.35381295,0.0002,2]
[329799471,1718681443116,-95.10412029,0.0002,2]
[329799472,1718681443128,-2145.76887824,0.0002,2]
[329799473,1718681443140,-1186.71194995,0.0002,2]
[329799474,1718681443152,-681.43362743,0.0002,2]
[329799475,1718681443164,-4371.83669694,0.0002,2]
[329799476,1718681443177,-825.14433453,0.0002,2]
[329799477,1718681443189,-1706.39837744,0.0002,2]
[329799478,1718681443199,-2425.68747,0.0002,2]
[329799479,1718681443209,-500.0,0.0002,2]
[329799480,1718681443219,-1044.24871518,0.0002,2]
[329799481,1718681443228,-32430.63558338,0.0002,2]
[329799482,1718681443237,-1048.70450835,0.0002,2]
[329799483,1718681443247,-273.546634,0.0002,2]
[329799484,1718681443257,-226.85225071,0.000201,2]
[329799485,1718681443267,-159.1,0.00020302,2]
[329799486,1718681443276,-500.0,0.000207,2]
[329799487,1718681443286,-3125.0,0.000207,2]
[329799488,1718681443296,-620.0,0.000208,2]
[329799489,1718681443306,-273.546634,0.00020822,2]
[329799490,1718681443316,-1053.7,0.00020822,2]
[329799491,1718681443325,-196.74,0.00020822,2]
[329799492,1718681443335,-164.48,0.00020822,2]
[329799493,1718681443344,-164.48,0.00020822,2]
[329799494,1718681443354,-150.0,0.00020822,2]
[329799495,1718681443364,-150.0,0.00020822,2]
[329799496,1718681443374,-164.48,0.00020822,2]
[329799497,1718681443384,-150.0,0.00020822,2]
[329799498,1718681443394,-150.0,0.00020822,2]
[329799499,1718681443403,-150.0,0.00020822,2]
[329799500,1718681443413,-150.0,0.00020822,2]
[329799501,1718681443423,-150.0,0.00020822,2]
[329799502,1718681443433,-965.84291113,0.000209,2]
[329799503,1718681443443,-159.1,0.00020983,2]
[329799504,1718681443454,-202.223755,0.00021,2]
[329799505,1718681443464,-1250.0,0.00021,2]
[329799506,1718681443474,-1203.63949507,0.00021002,2]
[329799507,1718681443484,-2195.01899183,0.00021002,2]
[329799508,1718681443494,-339.52385466,0.00021002,2]
[329799509,1718681443504,-2369.42831983,0.00021002,2]
[329799510,1718681443515,-156.36386299,0.00021002,3]
[329799511,1718681443524,-155.13649833,0.00021002,2]
[329799512,1718681443534,-369.71411556,0.00021002,2]
[329799513,1718681443544,-1890.73321414,0.00021033,2]
[329799514,1718681443553,-164.48,0.00021068,2]
[329799515,1718681443563,-150.0,0.00021068,2]
[329799516,1718681443573,-150.0,0.00021068,2]
[329799517,1718681443582,-164.48,0.00021068,2]
[329799518,1718681443593,-183.14,0.00021068,2]
[329799519,1718681443602,-10000.0,0.0002107,2]
[329799520,1718681443612,-1152.0,0.00021245,2]
[329799521,1718681443621,-157.93,0.0002126,2]
[329799522,1718681443631,-152.0,0.00021387,3]
[329799523,1718681443641,-247.2,0.00021454,2]
[329799524,1718681443650,-155.0,0.000215,2]
[329799525,1718681443660,-300.0,0.000215,7]
[329799526,1718681443670,-700.0,0.000216,7]
[329799527,1718681443680,-273.546634,0.00021644,2]
[329799528,1718681443690,-159.1,0.00021664,2]
[329799529,1718681443700,-1000.0,0.00021669,2]
[329799530,1718681443712,-1100.0,0.000217,7]
[329799531,1718681443722,-85738.17957008,0.00021718,2]
[329799532,1718681443971,-480.88,0.00021737,2]
[329799533,1718681443987,-1690.14974468,0.00021747,2]
[329799534,1718681443998,-454.88,0.00021773,2]
[329799535,1718681444009,-152.85,0.00021787,15]
[329799536,1718681444019,-150.5,0.00021797,15]
[329799537,1718681444029,-1500.0,0.000218,7]
[329799538,1718681444040,-150.5,0.00021807,15]
[329799539,1718681444051,-224.95,0.00021808,2]
[329799540,1718681444061,-1000.0,0.00021817,2]
[329799541,1718681444071,-10000.0,0.00021817,2]
[329799542,1718681444082,-7500.0,0.00021817,2]
[329799543,1718681444092,-179.922919,0.00021817,2]
[329799544,1718681444103,-210.85539322,0.00021817,2]
[329799545,1718681444113,-324.73865866,0.00021817,2]
[329799546,1718681444124,-2837.27151426,0.00021817,2]
[329799547,1718681444135,-1900.0,0.000219,7]
[329799548,1718681444145,-473.61791872,0.000219,7]
[329799549,1718681444156,-1687.63990784,0.00021915,2]
[329799550,1718681444167,-155.05916087,0.00021915,2]
[329799551,1718681444179,-1046.65554681,0.00021916,2]
[329799552,1718681444189,-335.74486999,0.00021916,2]
[329799553,1718681444201,-404.36573902,0.00021916,2]
[329799554,1718681444211,-240.74297631,0.00021916,2]
[329799555,1718681444221,-782.0,0.00021917,2]
[329799556,1718681444231,-11219.86267281,0.00021917,2]
[329799557,1718681444462,-527.26,0.00019178,2]
[329799558,1718681444472,-4067.849949,0.00021917,2]
[329799559,1718681444483,-383.82767943,0.00021917,2]
[329799560,1718681444493,-517.70859243,0.00021917,2]
[329799561,1718681444503,-514.52552238,0.00021917,2]
[329799562,1718681444513,-500.0,0.00021917,2]
[329799563,1718681444523,-497.07080888,0.00021917,2]
[329799564,1718681444533,-500.0,0.00021917,2]
[329799565,1718681444544,-500.0,0.00021917,2]
[329799566,1718681444553,-500.0,0.00021917,2]
[329799567,1718681444563,-500.0,0.00021917,2]
[329799568,1718681444573,-535.98425001,0.00021917,2]
[329799569,1718681444584,-500.0,0.00021917,2]
[329799570,1718681444594,-500.0,0.00021917,2]
[329799573,1718681444604,-500.0,0.00021917,2]
[329799576,1718681444614,-451.05070953,0.00021917,2]
[329799579,1718681444624,-500.0,0.00021917,2]
[329799583,1718681444634,-500.0,0.00021917,2]
[329799586,1718681444644,-500.0,0.00021917,2]
[329799590,1718681444654,-500.0,0.00021917,2]
[329799593,1718681444664,-456.67586856,0.00021917,2]
[329799596,1718681444674,-500.0,0.00021917,2]
[329799599,1718681444684,-454.90716228,0.00021917,2]
[329799601,1718681444694,-500.0,0.00021917,2]
[329799603,1718681444704,-500.0,0.00021917,2]
[329799605,1718681444714,-264.79441426,0.00021917,2]
[329799607,1718681444724,-552.24559698,0.00021917,2]
[329799609,1718681444734,-500.0,0.00021917,2]
[329799611,1718681444743,-519.69436818,0.00021917,2]
[329799613,1718681444753,-500.0,0.00021917,2]
[329799615,1718681444763,-200.0,0.00021917,2]
[329799617,1718681444772,-500.0,0.00021917,2]
[329799619,1718681444782,-500.0,0.00021917,2]
[329799621,1718681444792,-500.0,0.00021917,2]
[329799623,1718681444802,-500.0,0.00021917,2]
[329799625,1718681444811,-199.88855209,0.00021917,2]
[329799627,1718681444821,-561.48773954,0.00021917,2]
[329799629,1718681444831,-500.0,0.00021917,2]
[329799631,1718681444841,-500.0,0.00021917,2]
[329799633,1718681444850,-564.18528784,0.00021917,2]
[329799635,1718681444860,-500.0,0.00021917,2]
[329799637,1718681444869,-500.0,0.00021917,2]
[329799639,1718681444879,-542.7655312,0.00021917,2]
[329799641,1718681444890,-500.0,0.00021917,2]
[329799643,1718681444906,-500.0,0.00021917,2]
[329799645,1718681444915,-424.47372093,0.00021917,2]
[329799647,1718681444925,-500.0,0.00021917,2]
[329799649,1718681444935,-500.0,0.00021917,2]
[329799651,1718681444946,-509.07499638,0.00021917,2]
[329799652,1718681444957,-500.0,0.00021917,2]
[329799653,1718681444967,-505.40271986,0.00021917,2]
[329799654,1718681444977,-408.78226208,0.00021917,2]
[329799655,1718681444988,-500.0,0.00021917,2]
[329799656,1718681444999,-166.65367,0.00021917,2]
[329799657,1718681445009,-500.0,0.00021917,2]
[329799658,1718681445019,-500.0,0.00021917,2]
[329799659,1718681445029,-500.0,0.00021917,2]
[329799660,1718681445038,-151.0,0.00021917,2]
[329799661,1718681445048,-151.0,0.00021917,2]
[329799663,1718681445057,-151.0,0.00021917,2]
[329799665,1718681445068,-155.516893,0.00021917,2]
[329799667,1718681445077,-500.0,0.00021917,2]
[329799669,1718681445087,-500.0,0.00021917,2]
[329799671,1718681445097,-151.0,0.00021917,2]
[329799673,1718681445107,-175.717508,0.00021917,2]
[329799675,1718681445116,-500.0,0.00021917,2]
[329799677,1718681445126,-500.0,0.00021917,2]
[329799679,1718681445136,-500.0,0.00021917,2]
[329799681,1718681445146,-500.0,0.00021917,2]
[329799683,1718681445156,-500.0,0.00021917,2]
[329799685,1718681445165,-500.0,0.00021917,2]
[329799687,1718681445175,-500.0,0.00021917,2]
[329799689,1718681445185,-500.0,0.00021917,2]
[329799691,1718681445196,-500.0,0.00021917,2]
[329799693,1718681445208,-517.9022479,0.00021917,2]
[329799695,1718681445217,-190.82310101,0.00021917,2]
[329799697,1718681445228,-500.0,0.00021917,2]
[329799699,1718681445237,-500.0,0.00021917,2]
[329799701,1718681445247,-500.0,0.00021917,2]
[329799703,1718681445257,-500.0,0.00021917,2]
[329799705,1718681445267,-198.31609878,0.00021917,2]
[329799706,1718681445277,-500.0,0.00021917,2]
[329799707,1718681445287,-556.49703703,0.00021917,2]
[329799709,1718681445296,-500.0,0.00021917,2]
[329799710,1718681445307,-500.0,0.00021917,2]
[329799711,1718681445317,-500.0,0.00021917,2]
[329799713,1718681445327,-500.0,0.00021917,2]
[329799714,1718681445336,-500.0,0.00021917,2]
[329799715,1718681445346,-500.0,0.00021917,2]
[329799716,1718681445356,-500.0,0.00021917,2]
[329799717,1718681445366,-527.42208121,0.00021917,2]
[329799718,1718681445376,-500.0,0.00021917,2]
[329799719,1718681445386,-500.0,0.00021917,2]
[329799720,1718681445396,-500.0,0.00021917,2]
[329799721,1718681445407,-500.0,0.00021917,2]
[329799722,1718681445417,-500.0,0.00021917,2]
[329799723,1718681445427,-500.0,0.00021917,2]
[329799724,1718681445438,-585.07068873,0.00021917,2]
[329799725,1718681445447,-500.0,0.00021917,2]
[329799726,1718681445459,-500.0,0.00021917,2]
[329799727,1718681445468,-500.0,0.00021917,2]
[329799728,1718681445479,-500.0,0.00021917,2]
[329799729,1718681445489,-500.0,0.00021917,2]
[329799730,1718681445499,-500.0,0.00021917,2]
[329799731,1718681445509,-500.0,0.00021917,2]
[329799732,1718681445519,-500.0,0.00021917,2]
[329799733,1718681445529,-508.51553728,0.00021917,2]
[329799734,1718681445539,-500.0,0.00021917,2]
[329799735,1718681445550,-500.0,0.00021917,2]
[329799736,1718681445562,-500.0,0.00021917,2]
[329799737,1718681445573,-500.0,0.00021917,2]
[329799738,1718681445583,-500.0,0.00021917,2]
[329799739,1718681445594,-500.0,0.00021917,2]
[329799740,1718681445604,-500.0,0.00021917,2]
[329799741,1718681445614,-506.51778905,0.00021917,2]
[329799742,1718681445624,-533.24368761,0.00021917,2]
[329799743,1718681445634,-500.0,0.00021917,2]
[329799744,1718681445644,-500.0,0.00021917,2]
[329799746,1718681445653,-500.0,0.00021917,2]
[329799748,1718681445663,-500.0,0.00021917,2]
[329799749,1718681445673,-500.0,0.00021917,2]
[329799750,1718681445682,-500.0,0.00021917,2]
[329799751,1718681445692,-500.0,0.00021917,2]
[329799752,1718681445703,-500.0,0.00021917,2]
[329799753,1718681445712,-500.0,0.00021917,2]
[329799754,1718681445722,-636.37,0.00021917,2]
[329799755,1718681445731,-500.0,0.00021917,2]
[329799756,1718681445741,-500.0,0.00021917,2]
[329799757,1718681445751,-500.0,0.00021917,2]
[329799758,1718681445761,-500.0,0.00021917,2]
[329799759,1718681445771,-416.92336074,0.00021917,2]
[329799760,1718681445782,-500.0,0.00021917,2]
[329799761,1718681445792,-500.0,0.00021917,2]
[329799763,1718681445803,-500.0,0.00021917,2]
[329799765,1718681445813,-508.2691592,0.00021917,2]
[329799766,1718681445824,-500.0,0.00021917,2]
[329799767,1718681445834,-500.0,0.00021917,2]
[329799768,1718681445844,-500.0,0.00021917,2]
[329799769,1718681445855,-500.0,0.00021917,2]
[329799770,1718681445866,-500.0,0.00021917,2]
[329799771,1718681445877,-500.0,0.00021917,2]
[329799772,1718681445887,-546.51846862,0.00021917,2]
[329799773,1718681445898,-500.0,0.00021917,2]
[329799774,1718681445912,-500.0,0.00021917,2]
[329799775,1718681445922,-500.0,0.00021917,2]